[Event "Live Chess"]
[Site "Chess.com"]
[Date "2010.12.08"]
[Round "-"]
[White "chessmuntu"]
[Black "hipposcottimus"]
[Result "0-1"]
[CurrentPosition "k7/6p1/p6q/1p5P/8/8/6P1/6RK w - -"]
[Timezone "UTC"]
[ECO "D10"]
[ECOUrl "https://www.chess.com/openings/Slav-Defense-3.Nc3"]
[UTCDate "2010.12.08"]
[UTCTime "02:14:26"]
[WhiteElo "1584"]
[BlackElo "1685"]
[TimeControl "60"]
[Termination "hipposcottimus won on time"]
[StartTime "02:14:26"]
[EndDate "2010.12.08"]
[EndTime "02:16:37"]
[Link "https://www.chess.com/game/live/75112394"]

1. d4 {[%clk 0:01:00]} 1... d5 {[%clk 0:01:00]} 2. c4 {[%clk 0:00:59.3]} 2... c6 {[%clk 0:00:59.7]} 3. Nc3 {[%clk 0:00:58.5]} 3... Nd7 {[%clk 0:00:59.4]} 4. cxd5 {[%clk 0:00:57.9]} 4... cxd5 {[%clk 0:00:58.8]} 5. Bf4 {[%clk 0:00:57]} 5... e6 {[%clk 0:00:58.5]} 6. e3 {[%clk 0:00:56.5]} 6... Ngf6 {[%clk 0:00:56.8]} 7. Nf3 {[%clk 0:00:56]} 7... Ne4 {[%clk 0:00:56.3]} 8. Bb5 {[%clk 0:00:54.1]} 8... Nxc3 {[%clk 0:00:55.2]} 9. bxc3 {[%clk 0:00:53.2]} 9... a6 {[%clk 0:00:52.5]} 10. Ba4 {[%clk 0:00:51]} 10... b5 {[%clk 0:00:51.2]} 11. Bc2 {[%clk 0:00:50.7]} 11... Be7 {[%clk 0:00:50.2]} 12. O-O {[%clk 0:00:50.2]} 12... O-O {[%clk 0:00:49.9]} 13. Ne5 {[%clk 0:00:48.9]} 13... f6 {[%clk 0:00:49.6]} 14. Qh5 {[%clk 0:00:46.8]} 14... Nxe5 {[%clk 0:00:48.2]} 15. Qxh7+ {[%clk 0:00:45.4]} 15... Kf7 {[%clk 0:00:44.9]} 16. Bxe5 {[%clk 0:00:41.1]} 16... fxe5 {[%clk 0:00:44.6]} 17. Bg6+ {[%clk 0:00:38.6]} 17... Kf6 {[%clk 0:00:42.1]} 18. dxe5+ {[%clk 0:00:34.3]} 18... Kxe5 {[%clk 0:00:40.3]} 19. f4+ {[%clk 0:00:32.2]} 19... Kd6 {[%clk 0:00:40]} 20. c4 {[%clk 0:00:29.6]} 20... Kc7 {[%clk 0:00:39.7]} 21. cxd5 {[%clk 0:00:28.5]} 21... exd5 {[%clk 0:00:35.5]} 22. Rac1+ {[%clk 0:00:26.9]} 22... Kb6 {[%clk 0:00:35.2]} 23. Qh3 {[%clk 0:00:23.5]} 23... Bb7 {[%clk 0:00:34.9]} 24. e4 {[%clk 0:00:21.8]} 24... Bc8 {[%clk 0:00:33.7]} 25. Qe3+ {[%clk 0:00:21.1]} 25... Kb7 {[%clk 0:00:30.7]} 26. exd5 {[%clk 0:00:19.9]} 26... Bd6 {[%clk 0:00:25.3]} 27. Be4 {[%clk 0:00:19]} 27... Bxf4 {[%clk 0:00:23.6]} 28. d6+ {[%clk 0:00:18]} 28... Kb8 {[%clk 0:00:18.8]} 29. Qxf4 {[%clk 0:00:17.1]} 29... Rxf4 {[%clk 0:00:17.3]} 30. Rxf4 {[%clk 0:00:16.1]} 30... Qxd6 {[%clk 0:00:15.6]} 31. Kh1 {[%clk 0:00:08.6]} 31... Bb7 {[%clk 0:00:12.6]} 32. Rf8+ {[%clk 0:00:06.1]} 32... Ka7 {[%clk 0:00:10.7]} 33. Rxa8+ {[%clk 0:00:03.9]} 33... Bxa8 {[%clk 0:00:10.2]} 34. Bxa8 {[%clk 0:00:02.3]} 34... Kxa8 {[%clk 0:00:09.9]} 35. Rg1 {[%clk 0:00:01.7]} 35... Qd2 {[%clk 0:00:09.3]} 36. h3 {[%clk 0:00:01.7]} 36... Qxa2 {[%clk 0:00:08.4]} 37. h4 {[%clk 0:00:01]} 37... Qe6 {[%clk 0:00:08.1]} 38. h5 {[%clk 0:00:01]} 38... Qh6 {[%clk 0:00:07.8]} 0-1

[Event "Live Chess"]
[Site "Chess.com"]
[Date "2010.12.08"]
[Round "-"]
[White "hipposcottimus"]
[Black "chessmuntu"]
[Result "0-1"]
[CurrentPosition "r3k2r/1p1nn1p1/p1p1p1p1/3p4/3N4/2B5/PPP2PPq/R2QNRK1 w kq -"]
[Timezone "UTC"]
[ECO "B10"]
[ECOUrl "https://www.chess.com/openings/Caro-Kann-Defense-2.Nf3-d5"]
[UTCDate "2010.12.08"]
[UTCTime "02:13:42"]
[WhiteElo "1679"]
[BlackElo "1590"]
[TimeControl "60"]
[Termination "chessmuntu won by checkmate"]
[StartTime "02:13:42"]
[EndDate "2010.12.08"]
[EndTime "02:14:13"]
[Link "https://www.chess.com/game/live/75112234"]

1. e4 {[%clk 0:01:00]} 1... c6 {[%clk 0:01:00]} 2. Nf3 {[%clk 0:00:59.6]} 2... d5 {[%clk 0:01:00]} 3. e5 {[%clk 0:00:59.4]} 3... Bf5 {[%clk 0:00:58.9]} 4. d4 {[%clk 0:00:59.1]} 4... Nd7 {[%clk 0:00:58]} 5. Bd3 {[%clk 0:00:58.6]} 5... Bg6 {[%clk 0:00:56]} 6. Bxg6 {[%clk 0:00:57.7]} 6... hxg6 {[%clk 0:00:55.7]} 7. Nc3 {[%clk 0:00:55.6]} 7... e6 {[%clk 0:00:55.7]} 8. Be3 {[%clk 0:00:55.3]} 8... a6 {[%clk 0:00:54.6]} 9. O-O {[%clk 0:00:55]} 9... Bb4 {[%clk 0:00:53.8]} 10. Ne1 {[%clk 0:00:54.1]} 10... Ne7 {[%clk 0:00:53.4]} 11. Bd2 {[%clk 0:00:53]} 11... f6 {[%clk 0:00:51.5]} 12. Ne2 {[%clk 0:00:52.6]} 12... fxe5 {[%clk 0:00:50.2]} 13. Bxb4 {[%clk 0:00:51.6]} 13... exd4 {[%clk 0:00:49]} 14. Nxd4 {[%clk 0:00:50.8]} 14... Qc7 {[%clk 0:00:48.7]} 15. Bc3 {[%clk 0:00:49.8]} 15... Qxh2# {[%clk 0:00:47.6]} 0-1

[Event "Live Chess"]
[Site "Chess.com"]
[Date "2010.12.08"]
[Round "-"]
[White "chessmuntu"]
[Black "hipposcottimus"]
[Result "0-1"]
[CurrentPosition "8/3R2pp/4k3/7K/5P1P/1rp5/p7/8 w - -"]
[Timezone "UTC"]
[ECO "D10"]
[ECOUrl "https://www.chess.com/openings/Slav-Defense-3.Nc3"]
[UTCDate "2010.12.08"]
[UTCTime "02:11:14"]
[WhiteElo "1579"]
[BlackElo "1688"]
[TimeControl "60"]
[Termination "hipposcottimus won on time"]
[StartTime "02:11:14"]
[EndDate "2010.12.08"]
[EndTime "02:13:32"]
[Link "https://www.chess.com/game/live/75111722"]

1. d4 {[%clk 0:01:00]} 1... d5 {[%clk 0:01:00]} 2. c4 {[%clk 0:01:00]} 2... c6 {[%clk 0:00:59.8]} 3. Nc3 {[%clk 0:00:59.4]} 3... Nd7 {[%clk 0:00:59.6]} 4. c5 {[%clk 0:00:58.1]} 4... b6 {[%clk 0:00:58.4]} 5. b4 {[%clk 0:00:56.5]} 5... bxc5 {[%clk 0:00:57.9]} 6. bxc5 {[%clk 0:00:55.7]} 6... e5 {[%clk 0:00:55.5]} 7. dxe5 {[%clk 0:00:51.7]} 7... Nxe5 {[%clk 0:00:53.5]} 8. Bf4 {[%clk 0:00:51.3]} 8... Nd7 {[%clk 0:00:49.1]} 9. Bd6 {[%clk 0:00:48.1]} 9... Bxd6 {[%clk 0:00:46.4]} 10. cxd6 {[%clk 0:00:47.3]} 10... Nb6 {[%clk 0:00:44.3]} 11. e3 {[%clk 0:00:38.4]} 11... Qxd6 {[%clk 0:00:44]} 12. Be2 {[%clk 0:00:37.3]} 12... Nf6 {[%clk 0:00:43.3]} 13. Nf3 {[%clk 0:00:36.8]} 13... Ne4 {[%clk 0:00:42.7]} 14. O-O {[%clk 0:00:35.7]} 14... Nxc3 {[%clk 0:00:41.3]} 15. Qc2 {[%clk 0:00:34.9]} 15... Nxe2+ {[%clk 0:00:40.2]} 16. Qxe2 {[%clk 0:00:33.7]} 16... a5 {[%clk 0:00:39.5]} 17. Nd4 {[%clk 0:00:33.2]} 17... Ba6 {[%clk 0:00:38.5]} 18. Qf3 {[%clk 0:00:28.3]} 18... Bxf1 {[%clk 0:00:35.4]} 19. Rxf1 {[%clk 0:00:27.9]} 19... Qg6 {[%clk 0:00:33.5]} 20. Nf5 {[%clk 0:00:25.5]} 20... O-O {[%clk 0:00:32.1]} 21. Ne7+ {[%clk 0:00:23.7]} 21... Kh8 {[%clk 0:00:28.6]} 22. Nxg6+ {[%clk 0:00:23.7]} 22... fxg6 {[%clk 0:00:28.2]} 23. h3 {[%clk 0:00:22.9]} 23... Rxf3 {[%clk 0:00:26.3]} 24. gxf3 {[%clk 0:00:20.8]} 24... Nc4 {[%clk 0:00:26.1]} 25. Kh2 {[%clk 0:00:20.5]} 25... Re8 {[%clk 0:00:25.1]} 26. Rg1 {[%clk 0:00:19.1]} 26... Rf8 {[%clk 0:00:24.7]} 27. Rg3 {[%clk 0:00:18.1]} 27... Nd2 {[%clk 0:00:22.7]} 28. f4 {[%clk 0:00:16.5]} 28... Nf3+ {[%clk 0:00:21.9]} 29. Rxf3 {[%clk 0:00:15.5]} 29... g5 {[%clk 0:00:21.6]} 30. Rg3 {[%clk 0:00:13.6]} 30... gxf4 {[%clk 0:00:21]} 31. exf4 {[%clk 0:00:13.1]} 31... Kg8 {[%clk 0:00:20.5]} 32. Rd3 {[%clk 0:00:12.3]} 32... Rxf4 {[%clk 0:00:19.9]} 33. Kg3 {[%clk 0:00:11]} 33... Ra4 {[%clk 0:00:17.8]} 34. a3 {[%clk 0:00:09.9]} 34... c5 {[%clk 0:00:15.4]} 35. h4 {[%clk 0:00:09.4]} 35... c4 {[%clk 0:00:14.8]} 36. Rxd5 {[%clk 0:00:08.6]} 36... Rxa3+ {[%clk 0:00:12.6]} 37. Kg4 {[%clk 0:00:06.3]} 37... c3 {[%clk 0:00:12.2]} 38. Rc5 {[%clk 0:00:05.6]} 38... a4 {[%clk 0:00:10.2]} 39. f3 {[%clk 0:00:03.9]} 39... Rb3 {[%clk 0:00:09.8]} 40. Rc8+ {[%clk 0:00:02.5]} 40... Kf7 {[%clk 0:00:08]} 41. Kh5 {[%clk 0:00:02.5]} 41... a3 {[%clk 0:00:05.9]} 42. f4 {[%clk 0:00:02.5]} 42... a2 {[%clk 0:00:05.4]} 43. Rc7+ {[%clk 0:00:02.5]} 43... Kf6 {[%clk 0:00:03.9]} 44. Rd7 {[%clk 0:00:01.3]} 44... Ke6 {[%clk 0:00:03]} 0-1

[Event "Live Chess"]
[Site "Chess.com"]
[Date "2010.12.08"]
[Round "-"]
[White "hipposcottimus"]
[Black "chessmuntu"]
[Result "1-0"]
[CurrentPosition "1k2Nbr1/ppqnn3/2p1pBp1/3pP2p/3P4/8/PPP1BPPP/RN1QK2R b KQ -"]
[Timezone "UTC"]
[ECO "B10"]
[ECOUrl "https://www.chess.com/openings/Caro-Kann-Defense-2.Nf3-d5"]
[UTCDate "2010.12.08"]
[UTCTime "02:10:13"]
[WhiteElo "1682"]
[BlackElo "1585"]
[TimeControl "60"]
[Termination "hipposcottimus won by resignation"]
[StartTime "02:10:13"]
[EndDate "2010.12.08"]
[EndTime "02:11:00"]
[Link "https://www.chess.com/game/live/75111531"]

1. e4 {[%clk 0:01:00]} 1... c6 {[%clk 0:01:00]} 2. Nf3 {[%clk 0:00:59.8]} 2... d5 {[%clk 0:01:00]} 3. e5 {[%clk 0:00:59.5]} 3... Bg4 {[%clk 0:00:58.3]} 4. d4 {[%clk 0:00:59.2]} 4... e6 {[%clk 0:00:57.6]} 5. Be2 {[%clk 0:00:58.2]} 5... Ne7 {[%clk 0:00:57]} 6. Nh4 {[%clk 0:00:56.9]} 6... Bh5 {[%clk 0:00:56.3]} 7. Bxh5 {[%clk 0:00:55.9]} 7... g6 {[%clk 0:00:51.6]} 8. Be2 {[%clk 0:00:49.8]} 8... Qc7 {[%clk 0:00:49]} 9. Nf3 {[%clk 0:00:49.5]} 9... Nd7 {[%clk 0:00:48.4]} 10. Bg5 {[%clk 0:00:48.5]} 10... Rg8 {[%clk 0:00:45.3]} 11. Bf6 {[%clk 0:00:48.2]} 11... h5 {[%clk 0:00:43.6]} 12. Ng5 {[%clk 0:00:46.4]} 12... O-O-O {[%clk 0:00:41.7]} 13. Nxf7 {[%clk 0:00:44.3]} 13... Re8 {[%clk 0:00:41]} 14. Nd6+ {[%clk 0:00:42]} 14... Kb8 {[%clk 0:00:39.4]} 15. Nxe8 {[%clk 0:00:41.6]} 1-0

[Event "Live Chess"]
[Site "Chess.com"]
[Date "2010.12.08"]
[Round "-"]
[White "chessmuntu"]
[Black "hipposcottimus"]
[Result "0-1"]
[CurrentPosition "3q2k1/5ppp/8/r1p5/2Q5/7P/5PPK/1R6 w - -"]
[Timezone "UTC"]
[ECO "D10"]
[ECOUrl "https://www.chess.com/openings/Slav-Defense"]
[UTCDate "2010.12.08"]
[UTCTime "02:08:07"]
[WhiteElo "1591"]
[BlackElo "1676"]
[TimeControl "60"]
[Termination "hipposcottimus won on time"]
[StartTime "02:08:07"]
[EndDate "2010.12.08"]
[EndTime "02:09:57"]
[Link "https://www.chess.com/game/live/75111065"]

1. d4 {[%clk 0:01:00]} 1... d5 {[%clk 0:01:00]} 2. c4 {[%clk 0:01:00]} 2... c6 {[%clk 0:00:59.6]} 3. c5 {[%clk 0:00:58.9]} 3... b6 {[%clk 0:00:58.1]} 4. Nc3 {[%clk 0:00:58.9]} 4... bxc5 {[%clk 0:00:56.3]} 5. dxc5 {[%clk 0:00:58.4]} 5... e5 {[%clk 0:00:55.8]} 6. e3 {[%clk 0:00:57]} 6... Bxc5 {[%clk 0:00:55.4]} 7. Be2 {[%clk 0:00:54.7]} 7... Bb4 {[%clk 0:00:55]} 8. Nf3 {[%clk 0:00:53.2]} 8... d4 {[%clk 0:00:54.7]} 9. exd4 {[%clk 0:00:47.8]} 9... exd4 {[%clk 0:00:54.3]} 10. Nxd4 {[%clk 0:00:46.9]} 10... Bxc3+ {[%clk 0:00:52.5]} 11. bxc3 {[%clk 0:00:45.5]} 11... c5 {[%clk 0:00:51.9]} 12. Qa4+ {[%clk 0:00:44.2]} 12... Bd7 {[%clk 0:00:49.7]} 13. Nb5 {[%clk 0:00:38.4]} 13... Nf6 {[%clk 0:00:46.3]} 14. Bg5 {[%clk 0:00:35.1]} 14... O-O {[%clk 0:00:46]} 15. O-O {[%clk 0:00:31.6]} 15... Qb6 {[%clk 0:00:43.3]} 16. c4 {[%clk 0:00:27.8]} 16... Bxb5 {[%clk 0:00:42.6]} 17. cxb5 {[%clk 0:00:26.5]} 17... a6 {[%clk 0:00:41.7]} 18. bxa6 {[%clk 0:00:23.8]} 18... Nxa6 {[%clk 0:00:38.5]} 19. Bxf6 {[%clk 0:00:19.9]} 19... Qxf6 {[%clk 0:00:36.4]} 20. Bxa6 {[%clk 0:00:17.7]} 20... Rxa6 {[%clk 0:00:33.8]} 21. Qc4 {[%clk 0:00:17.2]} 21... Rc6 {[%clk 0:00:32.4]} 22. a4 {[%clk 0:00:16]} 22... Re8 {[%clk 0:00:32.1]} 23. a5 {[%clk 0:00:14.6]} 23... Ra8 {[%clk 0:00:31.8]} 24. Rfb1 {[%clk 0:00:10.3]} 24... Rca6 {[%clk 0:00:25.6]} 25. h3 {[%clk 0:00:02.8]} 25... Qd8 {[%clk 0:00:25.2]} 26. Kh2 {[%clk 0:00:01.9]} 26... Rxa5 {[%clk 0:00:23.7]} 27. Rxa5 {[%clk 0:00:00.4]} 27... Rxa5 {[%clk 0:00:23.5]} 0-1

[Event "Live Chess"]
[Site "Chess.com"]
[Date "2010.12.08"]
[Round "-"]
[White "hipposcottimus"]
[Black "chessmuntu"]
[Result "0-1"]
[CurrentPosition "r4Q2/1p1k2p1/4p3/1p1pnnP1/8/B3q3/PPP3Pr/R2K1R2 w - -"]
[Timezone "UTC"]
[ECO "B12"]
[ECOUrl "https://www.chess.com/openings/Caro-Kann-Defense-Advance-Variation-3...Bf5"]
[UTCDate "2010.12.08"]
[UTCTime "02:05:43"]
[WhiteElo "1670"]
[BlackElo "1597"]
[TimeControl "60"]
[Termination "chessmuntu won on time"]
[StartTime "02:05:43"]
[EndDate "2010.12.08"]
[EndTime "02:07:53"]
[Link "https://www.chess.com/game/live/75110539"]

1. e4 {[%clk 0:01:00]} 1... c6 {[%clk 0:01:00]} 2. d4 {[%clk 0:00:58.4]} 2... d5 {[%clk 0:01:00]} 3. e5 {[%clk 0:00:58]} 3... Bf5 {[%clk 0:00:58.3]} 4. f4 {[%clk 0:00:57.3]} 4... e6 {[%clk 0:00:57.3]} 5. Nf3 {[%clk 0:00:56.9]} 5... Nd7 {[%clk 0:00:56.1]} 6. Nh4 {[%clk 0:00:56.3]} 6... Bg6 {[%clk 0:00:54.1]} 7. Nxg6 {[%clk 0:00:55.3]} 7... hxg6 {[%clk 0:00:53.8]} 8. Nc3 {[%clk 0:00:54.8]} 8... Qc7 {[%clk 0:00:53.2]} 9. Be3 {[%clk 0:00:54.4]} 9... a6 {[%clk 0:00:52.5]} 10. Be2 {[%clk 0:00:54.1]} 10... Bb4 {[%clk 0:00:51.5]} 11. Bf3 {[%clk 0:00:52.7]} 11... Ne7 {[%clk 0:00:50.7]} 12. Bd2 {[%clk 0:00:51]} 12... Nf5 {[%clk 0:00:42.9]} 13. O-O {[%clk 0:00:48.9]} 13... Ne7 {[%clk 0:00:40.1]} 14. Nxd5 {[%clk 0:00:47.3]} 14... cxd5 {[%clk 0:00:33]} 15. Bxb4 {[%clk 0:00:43.7]} 15... f6 {[%clk 0:00:32.2]} 16. Be2 {[%clk 0:00:37.1]} 16... g5 {[%clk 0:00:31.1]} 17. Ba3 {[%clk 0:00:35.9]} 17... fxe5 {[%clk 0:00:29.1]} 18. fxg5 {[%clk 0:00:34.6]} 18... exd4 {[%clk 0:00:27.8]} 19. Qxd4 {[%clk 0:00:33.1]} 19... Qxh2+ {[%clk 0:00:26.5]} 20. Kf2 {[%clk 0:00:31.5]} 20... Nf5 {[%clk 0:00:23.3]} 21. Qg4 {[%clk 0:00:11.6]} 21... Ne5 {[%clk 0:00:18.9]} 22. Bb5+ {[%clk 0:00:08.7]} 22... axb5 {[%clk 0:00:15.4]} 23. Qb4 {[%clk 0:00:08.4]} 23... Qg3+ {[%clk 0:00:12.1]} 24. Ke2 {[%clk 0:00:06.9]} 24... Qe3+ {[%clk 0:00:09.1]} 25. Kd1 {[%clk 0:00:05.7]} 25... Rh2 {[%clk 0:00:02.1]} 26. Qf8+ {[%clk 0:00:02.8]} 26... Kd7 {[%clk 0:00:00.5]} 0-1

[Event "Live Chess"]
[Site "Chess.com"]
[Date "2010.12.08"]
[Round "-"]
[White "chessmuntu"]
[Black "hipposcottimus"]
[Result "0-1"]
[CurrentPosition "5rk1/6pp/2p4r/p1Pp4/3PpNp1/P2bP1B1/1R1Q1PP1/4R1Kq w - -"]
[Timezone "UTC"]
[ECO "A40"]
[ECOUrl "https://www.chess.com/openings/Englund-Gambit"]
[UTCDate "2010.12.08"]
[UTCTime "02:03:48"]
[WhiteElo "1586"]
[BlackElo "1679"]
[TimeControl "60"]
[Termination "hipposcottimus won by checkmate"]
[StartTime "02:03:48"]
[EndDate "2010.12.08"]
[EndTime "02:05:24"]
[Link "https://www.chess.com/game/live/75110146"]

1. d4 {[%clk 0:01:00]} 1... e5 {[%clk 0:01:00]} 2. c4 {[%clk 0:01:00]} 2... e4 {[%clk 0:00:58.9]} 3. Bf4 {[%clk 0:00:57.3]} 3... d5 {[%clk 0:00:58.6]} 4. c5 {[%clk 0:00:55.9]} 4... b6 {[%clk 0:00:55.2]} 5. b4 {[%clk 0:00:52.7]} 5... bxc5 {[%clk 0:00:54.5]} 6. bxc5 {[%clk 0:00:52]} 6... c6 {[%clk 0:00:52.1]} 7. e3 {[%clk 0:00:51.3]} 7... f5 {[%clk 0:00:49.6]} 8. Nc3 {[%clk 0:00:50.5]} 8... Nf6 {[%clk 0:00:49.3]} 9. Nge2 {[%clk 0:00:48.5]} 9... Be7 {[%clk 0:00:49]} 10. Ng3 {[%clk 0:00:47.3]} 10... O-O {[%clk 0:00:48.8]} 11. Be2 {[%clk 0:00:44.6]} 11... a5 {[%clk 0:00:48.4]} 12. O-O {[%clk 0:00:43.2]} 12... Na6 {[%clk 0:00:47]} 13. a3 {[%clk 0:00:41.5]} 13... Qd7 {[%clk 0:00:45.4]} 14. Bxa6 {[%clk 0:00:34.2]} 14... Rxa6 {[%clk 0:00:44.2]} 15. Re1 {[%clk 0:00:34.1]} 15... Ra7 {[%clk 0:00:43.1]} 16. Qe2 {[%clk 0:00:33]} 16... Ba6 {[%clk 0:00:42.8]} 17. Qd2 {[%clk 0:00:30.1]} 17... Ng4 {[%clk 0:00:42.5]} 18. h3 {[%clk 0:00:27.4]} 18... Bh4 {[%clk 0:00:41.6]} 19. hxg4 {[%clk 0:00:25.4]} 19... Bxg3 {[%clk 0:00:41]} 20. Bxg3 {[%clk 0:00:24.6]} 20... fxg4 {[%clk 0:00:40.5]} 21. Rab1 {[%clk 0:00:21.9]} 21... Qf7 {[%clk 0:00:40.1]} 22. Rb2 {[%clk 0:00:19.7]} 22... Bd3 {[%clk 0:00:38.7]} 23. Rb6 {[%clk 0:00:17.6]} 23... Rc7 {[%clk 0:00:37]} 24. Rb2 {[%clk 0:00:15.6]} 24... Rd7 {[%clk 0:00:35.9]} 25. Na4 {[%clk 0:00:15.1]} 25... Re7 {[%clk 0:00:34.7]} 26. Nb6 {[%clk 0:00:14.7]} 26... Re6 {[%clk 0:00:33.5]} 27. Na4 {[%clk 0:00:12.7]} 27... Rh6 {[%clk 0:00:33.1]} 28. Nc3 {[%clk 0:00:11]} 28... Qf5 {[%clk 0:00:32.4]} 29. Ne2 {[%clk 0:00:09.2]} 29... Qh5 {[%clk 0:00:32.1]} 30. Nf4 {[%clk 0:00:08.5]} 30... Qh1# {[%clk 0:00:31]} 0-1

[Event "Live Chess"]
[Site "Chess.com"]
[Date "2010.12.08"]
[Round "-"]
[White "hipposcottimus"]
[Black "chessmuntu"]
[Result "0-1"]
[CurrentPosition "2r3k1/5ppp/6n1/p2pP3/1p1P1n2/1P6/P5qP/4BRK1 w - -"]
[Timezone "UTC"]
[ECO "B10"]
[ECOUrl "https://www.chess.com/openings/Caro-Kann-Defense-2.Nf3-d5"]
[UTCDate "2010.12.08"]
[UTCTime "02:01:47"]
[WhiteElo "1673"]
[BlackElo "1592"]
[TimeControl "60"]
[Termination "chessmuntu won by checkmate"]
[StartTime "02:01:47"]
[EndDate "2010.12.08"]
[EndTime "02:03:35"]
[Link "https://www.chess.com/game/live/75109703"]

1. e4 {[%clk 0:01:00]} 1... c6 {[%clk 0:01:00]} 2. Nf3 {[%clk 0:00:59.7]} 2... d5 {[%clk 0:00:59.2]} 3. e5 {[%clk 0:00:59.4]} 3... Bg4 {[%clk 0:00:58.5]} 4. d4 {[%clk 0:00:59.1]} 4... e6 {[%clk 0:00:57.5]} 5. Be2 {[%clk 0:00:57.6]} 5... Bb4+ {[%clk 0:00:55.9]} 6. Nfd2 {[%clk 0:00:56.3]} 6... Bxd2+ {[%clk 0:00:54.1]} 7. Bxd2 {[%clk 0:00:55.2]} 7... Bxe2 {[%clk 0:00:53.1]} 8. Qxe2 {[%clk 0:00:54.9]} 8... Ne7 {[%clk 0:00:52.3]} 9. Nc3 {[%clk 0:00:54.5]} 9... O-O {[%clk 0:00:51.6]} 10. O-O {[%clk 0:00:54.1]} 10... Nd7 {[%clk 0:00:50.8]} 11. Nd1 {[%clk 0:00:53.8]} 11... a6 {[%clk 0:00:50.4]} 12. c4 {[%clk 0:00:53.4]} 12... Rc8 {[%clk 0:00:49.9]} 13. cxd5 {[%clk 0:00:52.9]} 13... cxd5 {[%clk 0:00:49.1]} 14. Rc1 {[%clk 0:00:52.4]} 14... b5 {[%clk 0:00:48.3]} 15. Rxc8 {[%clk 0:00:51.3]} 15... Qxc8 {[%clk 0:00:47.8]} 16. Bc3 {[%clk 0:00:51]} 16... Qc7 {[%clk 0:00:43.5]} 17. f4 {[%clk 0:00:50.7]} 17... Rb8 {[%clk 0:00:40.1]} 18. Rf3 {[%clk 0:00:50.4]} 18... a5 {[%clk 0:00:38.9]} 19. Bd2 {[%clk 0:00:49.7]} 19... b4 {[%clk 0:00:37.3]} 20. Be3 {[%clk 0:00:49.4]} 20... Rc8 {[%clk 0:00:35.1]} 21. Rh3 {[%clk 0:00:49.1]} 21... Ng6 {[%clk 0:00:32.1]} 22. Qh5 {[%clk 0:00:48.2]} 22... Ndf8 {[%clk 0:00:28.2]} 23. f5 {[%clk 0:00:45.4]} 23... exf5 {[%clk 0:00:26.9]} 24. Qxf5 {[%clk 0:00:43.8]} 24... Qc2 {[%clk 0:00:24.3]} 25. Nf2 {[%clk 0:00:40]} 25... Qxf5 {[%clk 0:00:22.7]} 26. Rf3 {[%clk 0:00:36.9]} 26... Qb1+ {[%clk 0:00:19.2]} 27. Nd1 {[%clk 0:00:32.6]} 27... Qxd1+ {[%clk 0:00:17.5]} 28. Rf1 {[%clk 0:00:32.4]} 28... Qd3 {[%clk 0:00:15.2]} 29. Bg5 {[%clk 0:00:32]} 29... Ne6 {[%clk 0:00:12.4]} 30. Bh4 {[%clk 0:00:31.6]} 30... Nef4 {[%clk 0:00:10.9]} 31. Bf2 {[%clk 0:00:31]} 31... Ne2+ {[%clk 0:00:09.6]} 32. Kh1 {[%clk 0:00:29.6]} 32... Nef4 {[%clk 0:00:08.3]} 33. Kg1 {[%clk 0:00:29]} 33... Qe4 {[%clk 0:00:06.8]} 34. Be1 {[%clk 0:00:27.2]} 34... Qe2 {[%clk 0:00:05.1]} 35. b3 {[%clk 0:00:26.4]} 35... Qxg2# {[%clk 0:00:03.5]} 0-1

[Event "Live Chess"]
[Site "Chess.com"]
[Date "2010.12.08"]
[Round "-"]
[White "EvanLopez"]
[Black "hipposcottimus"]
[Result "1-0"]
[CurrentPosition "6k1/pp4pp/2q5/8/2P2P1N/3n2K1/PP5P/3R4 b - -"]
[Timezone "UTC"]
[ECO "C55"]
[ECOUrl "https://www.chess.com/openings/Italian-Game-Two-Knights-Modern-Bishops-Opening"]
[UTCDate "2010.12.08"]
[UTCTime "01:45:26"]
[WhiteElo "1525"]
[BlackElo "1682"]
[TimeControl "60"]
[Termination "EvanLopez won on time"]
[StartTime "01:45:26"]
[EndDate "2010.12.08"]
[EndTime "01:47:34"]
[Link "https://www.chess.com/game/live/75106084"]

1. e4 {[%clk 0:01:00]} 1... e5 {[%clk 0:01:00]} 2. Nf3 {[%clk 0:00:59.5]} 2... Nc6 {[%clk 0:00:59.7]} 3. Bc4 {[%clk 0:00:59.2]} 3... Nf6 {[%clk 0:00:59.4]} 4. d3 {[%clk 0:00:58.8]} 4... Na5 {[%clk 0:00:56.8]} 5. Nbd2 {[%clk 0:00:54.8]} 5... Nxc4 {[%clk 0:00:55.9]} 6. Nxc4 {[%clk 0:00:54.6]} 6... d5 {[%clk 0:00:55.7]} 7. exd5 {[%clk 0:00:53.7]} 7... Nxd5 {[%clk 0:00:55.5]} 8. Ncxe5 {[%clk 0:00:52.6]} 8... Bd6 {[%clk 0:00:53.3]} 9. d4 {[%clk 0:00:51.9]} 9... O-O {[%clk 0:00:52.5]} 10. Bf4 {[%clk 0:00:50]} 10... Re8 {[%clk 0:00:52.3]} 11. Bg5 {[%clk 0:00:48]} 11... f6 {[%clk 0:00:51.7]} 12. Bxf6 {[%clk 0:00:46.8]} 12... Qxf6 {[%clk 0:00:49.9]} 13. O-O {[%clk 0:00:43.4]} 13... Nf4 {[%clk 0:00:43.6]} 14. c4 {[%clk 0:00:41.9]} 14... Bxe5 {[%clk 0:00:42.8]} 15. dxe5 {[%clk 0:00:40.1]} 15... Qg6 {[%clk 0:00:40.5]} 16. g3 {[%clk 0:00:38.5]} 16... Bh3 {[%clk 0:00:37]} 17. Re1 {[%clk 0:00:35.5]} 17... Rf8 {[%clk 0:00:35.5]} 18. Nh4 {[%clk 0:00:31.8]} 18... Qg5 {[%clk 0:00:31.7]} 19. e6 {[%clk 0:00:29.6]} 19... Bxe6 {[%clk 0:00:27]} 20. Rc1 {[%clk 0:00:27.4]} 20... Nh3+ {[%clk 0:00:26]} 21. Kh1 {[%clk 0:00:25.8]} 21... Rxf2 {[%clk 0:00:21.5]} 22. Rxe6 {[%clk 0:00:23.4]} 22... Rf6 {[%clk 0:00:13.9]} 23. Rxf6 {[%clk 0:00:21.8]} 23... Qxf6 {[%clk 0:00:13.7]} 24. Qd7 {[%clk 0:00:18.8]} 24... Nf2+ {[%clk 0:00:13.3]} 25. Kg2 {[%clk 0:00:16.6]} 25... Rf8 {[%clk 0:00:13]} 26. Qxc7 {[%clk 0:00:14.9]} 26... Ng4 {[%clk 0:00:12]} 27. Qf4 {[%clk 0:00:10.7]} 27... Qc6+ {[%clk 0:00:06.9]} 28. Kh3 {[%clk 0:00:09.2]} 28... Rxf4 {[%clk 0:00:05.9]} 29. gxf4 {[%clk 0:00:08.2]} 29... Nf2+ {[%clk 0:00:04.7]} 30. Kg3 {[%clk 0:00:05.6]} 30... Nd3 {[%clk 0:00:03.1]} 31. Rd1 {[%clk 0:00:04.3]} 1-0